fUSD/lending_fUSD_20240317
["ID","MTS","AMOUNT","RATE_DAILY","PERIOD"]
[319290358,1710640248523,-500.0,0.00015479,2]
[319290359,1710640248533,-500.0,0.00015479,2]
[319290360,1710640248542,-500.0,0.00015479,2]
[319290361,1710640248552,-500.0,0.00015479,2]
[319290362,1710640248561,-500.0,0.00015479,2]
[319290363,1710640248570,-500.0,0.00015479,2]
[319290364,1710640248580,-456.10099559,0.00015479,2]
[319290365,1710640248590,-500.0,0.00015479,2]
[319290366,1710640248599,-530.52499305,0.00015479,2]
[319290367,1710640248609,-637.78,0.00015479,2]
[319290368,1710640248618,-637.78,0.00015479,2]
[319290369,1710640248628,-637.78,0.00015479,2]
[319290370,1710640248637,-637.78,0.00015479,2]
[319290371,1710640248647,-637.78,0.00015479,2]
[319290372,1710640248657,-637.78,0.00015479,2]
[319290373,1710640248668,-671.3,0.00015479,2]
[319290374,1710640248678,-671.3,0.00015479,2]
[319290375,1710640248688,-671.3,0.00015479,2]
[319290376,1710640248698,-671.3,0.00015479,2]
[319290377,1710640248708,-671.3,0.00015479,2]
[319290378,1710640248718,-671.3,0.00015479,2]
[319290379,1710640248727,-500.0,0.00015479,2]
[319290380,1710640248737,-500.0,0.00015479,2]
[319290381,1710640248747,-500.0,0.00015479,2]
[319290382,1710640248757,-500.0,0.00015479,2]
[319290383,1710640248767,-500.0,0.00015479,2]
[319290384,1710640248778,-500.0,0.00015479,2]
[319290385,1710640248789,-493.6102943,0.00015479,2]
[319290386,1710640248798,-500.0,0.00015479,2]
[319290387,1710640248808,-500.0,0.00015479,2]
[319290388,1710640248818,-500.0,0.00015479,2]
[319290389,1710640248828,-500.0,0.00015479,2]
[319290390,1710640248841,-500.0,0.00015479,2]
[319290391,1710640248850,-2421.75,0.00015479,2]
[319290392,1710640248860,-2421.75,0.00015479,2]
[319290393,1710640248870,-2421.75,0.00015479,2]
[319290394,1710640248880,-2421.75,0.00015479,2]
[319290395,1710640248890,-2421.75,0.00015479,2]
[319290396,1710640248900,-2421.75,0.00015479,2]
[319290397,1710640248911,-1733.44,0.00015479,2]
[319290398,1710640248922,-1733.44,0.00015479,2]
[319290399,1710640248932,-1733.44,0.00015479,2]
[319290400,1710640248941,-1733.44,0.00015479,2]
[319290401,1710640248951,-1733.44,0.00015479,2]
[319290402,1710640248960,-500.0,0.00015479,2]
[319290403,1710640248970,-449.8357575,0.00015479,2]
[319290404,1710640248979,-1022.16,0.00015479,2]
[319290405,1710640248988,-1022.16,0.00015479,2]
[319290406,1710640248997,-1022.16,0.00015479,2]
[319290407,1710640249006,-1022.16,0.00015479,2]
[319290408,1710640249015,-1022.16,0.00015479,2]
[319290409,1710640249026,-524.02,0.00015479,2]
[319290410,1710640249035,-524.02,0.00015479,2]
[319290411,1710640249045,-524.02,0.00015479,2]
[319290412,1710640249054,-524.02,0.00015479,2]
[319290413,1710640249064,-524.02,0.00015479,2]
[319290414,1710640249073,-1657.76,0.00015479,2]
[319290415,1710640249083,-1657.76,0.00015479,2]
[319290416,1710640249092,-1657.76,0.00015479,2]
[319290417,1710640249101,-1657.76,0.00015479,2]
[319290418,1710640249110,-1657.76,0.00015479,2]
[319290419,1710640249120,-1657.76,0.00015479,2]
[319290420,1710640249130,-500.0,0.00015479,2]
[319290421,1710640249139,-500.0,0.00015479,2]
[319290422,1710640249148,-500.0,0.00015479,2]
[319290423,1710640249158,-500.0,0.00015479,2]
[319290424,1710640249169,-500.0,0.00015479,2]
[319290425,1710640249178,-1357.51,0.00015479,2]
[319290426,1710640249186,-1357.51,0.00015479,2]
[319290427,1710640249196,-1357.51,0.00015479,2]
[319290428,1710640249205,-1357.51,0.00015479,2]
[319290429,1710640249217,-1357.51,0.00015479,2]
[319290430,1710640249226,-1357.51,0.00015479,2]
[319290431,1710640249235,-500.0,0.00015479,2]
[319290432,1710640249245,-591.67,0.00015479,2]
[319290433,1710640249255,-591.67,0.00015479,2]
[319290434,1710640249265,-591.67,0.00015479,2]
[319290435,1710640249274,-591.67,0.00015479,2]
[319290436,1710640249283,-500.0,0.00015479,2]
[319290437,1710640249292,-591.67,0.00015479,2]
[319290438,1710640249302,-500.0,0.00015479,2]
[319290439,1710640249311,-500.0,0.00015479,2]
[319290440,1710640249321,-500.0,0.00015479,2]
[319290441,1710640249330,-500.0,0.00015479,2]
[319290442,1710640249340,-500.0,0.00015479,2]
[319290443,1710640249350,-800.0,0.00015479,2]
[319290444,1710640249359,-1345508.13039999,0.0001548,2]
[319290445,1710640249369,-151.056935,0.0001548,2]
[319290446,1710640249378,-151.0,0.0001548,2]
[319290447,1710640249399,-151.0,0.0001548,2]
[319290448,1710640249410,-154.547808,0.0001548,2]
[319290449,1710640249420,-151.0,0.0001548,2]
[319290450,1710640249430,-151.0,0.0001548,2]
[319290451,1710640249440,-151.0,0.0001548,2]
[319290452,1710640249450,-151.0,0.0001548,2]
[319290453,1710640249461,-154.446055,0.0001548,2]
[319290454,1710640249471,-151.0,0.0001548,2]
[319290455,1710640249480,-154.675338,0.0001548,2]
[319290456,1710640249490,-151.0,0.0001548,2]
[319290457,1710640249500,-151.0,0.0001548,2]
[319290458,1710640249510,-151.0,0.0001548,2]
[319290459,1710640249519,-151.0,0.0001548,2]
[319290460,1710640249529,-151.0,0.0001548,2]
[319290461,1710640249539,-152.615162,0.0001548,2]
[319290462,1710640249549,-152.615162,0.0001548,2]
[319290463,1710640249559,-151.0,0.0001548,2]
[319290464,1710640249569,-153.990602,0.0001548,2]
[319290465,1710640249578,-3000.0,0.0001548,2]
[319290466,1710640249588,-155.032965,0.0001548,2]
[319290467,1710640249598,-151.0,0.0001548,2]
[319290468,1710640249608,-151.0,0.0001548,2]
[319290469,1710640249618,-151.0,0.0001548,2]
[319290470,1710640249627,-154.336474,0.0001548,2]
[319290471,1710640249637,-159.785569,0.0001548,2]
[319290472,1710640249647,-159.785569,0.0001548,2]
[319290473,1710640249657,-1496.489198,0.0001548,2]
[319290474,1710640249669,-1496.489198,0.0001548,2]
[319290475,1710640249680,-151.0,0.0001548,2]
[319290476,1710640249690,-214.599104,0.0001548,2]
[319290477,1710640249699,-151.0,0.0001548,2]
[319290478,1710640249709,-156.499567,0.0001548,2]
[319290479,1710640249719,-151.600862,0.0001548,2]
[319290480,1710640249729,-151.0,0.0001548,2]
[319290481,1710640249738,-714.14,0.00015487,2]
[319290482,1710640249748,-1292.37,0.00015487,2]
[319290483,1710640249758,-678.89,0.00015487,2]
[319290484,1710640249768,-500.0,0.00015487,2]
[319290485,1710640249778,-504.07,0.00015487,2]
[319290486,1710640249788,-617.46621261,0.00015487,2]
[319290487,1710640249798,-500.0,0.00015487,2]
[319290488,1710640249807,-500.0,0.00015487,2]
[319290489,1710640249817,-1733.44,0.00015487,2]
[319290490,1710640249827,-1022.16,0.00015487,2]
[319290491,1710640249841,-524.02,0.00015487,2]
[319290492,1710640249851,-500.0,0.00015487,2]
[319290493,1710640249861,-591.67,0.00015487,2]
[319290494,1710640249871,-500.0,0.00015488,2]
[319290495,1710640249881,-500.0,0.00015488,2]
[319290496,1710640249890,-500.0,0.00015488,2]
[319290497,1710640249900,-500.0,0.00015488,2]
[319290498,1710640249911,-500.0,0.00015488,2]
[319290499,1710640249923,-500.0,0.00015488,2]
[319290500,1710640249932,-627.63,0.00015488,2]
[319290501,1710640249943,-627.63,0.00015488,2]
[319290502,1710640249952,-627.63,0.00015488,2]
[319290503,1710640249962,-714.14,0.00015488,2]
[319290504,1710640249972,-714.14,0.00015488,2]
[319290505,1710640249982,-1292.37,0.00015488,2]
[319290506,1710640249992,-1292.37,0.00015488,2]
[319290507,1710640250002,-678.89,0.00015488,2]
[319290508,1710640250012,-678.89,0.00015488,2]
[319290509,1710640250022,-500.0,0.00015488,2]
[319290510,1710640250032,-414.23386204,0.00015488,2]
[319290511,1710640250042,-504.07,0.00015488,2]
[319290512,1710640250052,-504.07,0.00015488,2]
[319290513,1710640250062,-500.0,0.00015488,2]
[319290514,1710640250072,-559.39564431,0.00015488,2]
[319290515,1710640250082,-500.0,0.00015488,2]
[319290516,1710640250092,-500.0,0.00015488,2]
[319290517,1710640250101,-941.84,0.00015488,2]
[319290518,1710640250111,-941.84,0.00015488,2]
[319290519,1710640250120,-500.0,0.00015488,2]
[319290520,1710640250130,-451.85375144,0.00015488,2]
[319290521,1710640250140,-500.0,0.00015488,2]
[319290522,1710640250150,-500.0,0.00015488,2]
[319290523,1710640250159,-500.0,0.00015488,2]
[319290524,1710640250171,-637.78,0.00015488,2]
[319290525,1710640250181,-637.78,0.00015488,2]
[319290526,1710640250190,-637.78,0.00015488,2]
[319290527,1710640250200,-671.3,0.00015488,2]
[319290528,1710640250210,-671.3,0.00015488,2]
[319290529,1710640250220,-500.0,0.00015488,2]
[319290530,1710640250230,-152.05150815,0.00015488,2]
[319290531,1710640250240,-500.0,0.00015488,2]
[319290532,1710640250250,-500.0,0.00015488,2]
[319290533,1710640250259,-2421.75,0.00015488,2]
[319290534,1710640250269,-2421.75,0.00015488,2]
[319290535,1710640250278,-1733.44,0.00015488,2]
[319290536,1710640250288,-1733.44,0.00015488,2]
[319290537,1710640250298,-1022.16,0.00015488,2]
[319290538,1710640250308,-1022.16,0.00015488,2]
[319290539,1710640250317,-524.02,0.00015488,2]
[319290540,1710640250327,-524.02,0.00015488,2]
[319290541,1710640250337,-1657.76,0.00015488,2]
[319290542,1710640250346,-1657.76,0.00015488,2]
[319290543,1710640250356,-500.0,0.00015488,2]
[319290544,1710640250366,-500.0,0.00015488,2]
[319290545,1710640250376,-1357.51,0.00015488,2]
[319290546,1710640250385,-1357.51,0.00015488,2]
[319290547,1710640250395,-591.67,0.00015488,2]
[319290548,1710640250405,-591.67,0.00015488,2]
[319290549,1710640250415,-500.0,0.00015488,2]
[319290550,1710640250425,-500.0,0.00015488,2]
[319290551,1710640250435,-7317.0284815,0.00015489,2]
[319290552,1710640250445,-7175.502083,0.00015489,2]
[319290553,1710640250455,-7033.9756844,0.00015489,2]
[319290554,1710640250466,-21166.3688386,0.00015489,2]
[319290555,1710640250476,-20710.8257142,0.00015489,2]
[319290556,1710640250486,-20255.2825899,0.00015489,2]
[319290557,1710640250496,-1644.8289508,0.00015489,2]
[319290558,1710640250506,-1609.4289006,0.00015489,2]
[319290559,1710640250516,-1574.0288504,0.00015489,2]
[319290560,1710640250599,-13941.3725496,0.00015489,2]
[319290561,1710640250609,-13611.1382706,0.00015489,2]
[319290562,1710640250622,-13280.9039916,0.00015489,2]
[319290563,1710640250632,-39040.4633166,0.00015489,2]
[319290564,1710640250642,-37954.0523247,0.00015489,2]
[319290565,1710640250652,-36867.6413327,0.00015489,2]
[319290566,1710640250662,-114340.8690308,0.00015489,2]
[319290567,1710640250672,-111159.0118911,0.00015489,2]
[319290568,1710640250682,-107977.1547515,0.00015489,2]
[319290569,1710640250691,-1023.2023,0.0001549,2]
[319290570,1710640250701,-229.98759119,0.00015496,2]
[319290571,1710640250710,-228.39412694,0.00015496,2]
[319290572,1710640250719,-234.52575689,0.00015496,2]
[319290573,1710640250730,-155.490032,0.00015496,2]
[319290574,1710640250739,-467.24980606,0.00015496,2]
[319290575,1710640250748,-198.65301063,0.00015496,2]
[319290576,1710640250758,-248.02641163,0.00015496,2]
[319290577,1710640250768,-500.0,0.00015496,2]
[319290578,1710640250777,-671.3,0.00015496,2]
[319290579,1710640250786,-2421.75,0.00015496,2]
[319290580,1710640250796,-1657.76,0.00015496,2]
[319290581,1710640250806,-1357.51,0.00015496,2]
[319290582,1710640250815,-500.0,0.00015496,2]
[319290583,1710640250825,-155.31231467,0.00015497,2]
[319290584,1710640250837,-216.18128363,0.00015497,2]
[319290585,1710640250847,-209.52382294,0.00015497,2]
[319290586,1710640250856,-1163.19689565,0.00015497,2]
[319290587,1710640250865,-526.00339042,0.00015497,7]
[319290588,1710640250874,-238.33779423,0.00015497,2]
[319290589,1710640250885,-200.0,0.00015497,2]
[319290590,1710640250894,-155.19045821,0.00015497,2]
[319290591,1710640250903,-166.75136703,0.00015497,2]
[319290592,1710640250913,-196.73405952,0.00015497,5]
[319290593,1710640250923,-155.51137187,0.00015497,2]
[319290594,1710640250933,-3036.21339193,0.00015497,2]
[319290595,1710640250943,-289.98282601,0.00015497,2]
[319290596,1710640250953,-485.95502399,0.00015497,2]
[319290597,1710640250962,-174.51195917,0.00015497,2]
[319290598,1710640250972,-155.29867233,0.00015497,2]
[319290599,1710640250981,-256.14372357,0.00015497,2]
[319290600,1710640250990,-184.67327119,0.00015497,2]
[319290601,1710640251000,-155.16012,0.00015497,2]
[319290602,1710640251009,-207.40851117,0.00015497,2]
[319290603,1710640251019,-155.45053938,0.00015497,2]
[319290604,1710640251028,-1631.09686534,0.00015497,2]
[319290605,1710640251037,-500.0,0.00015497,2]
[319290606,1710640251047,-500.0,0.00015497,2]
[319290607,1710640251056,-627.63,0.00015497,2]
[319290608,1710640251066,-714.14,0.00015497,2]
[319290609,1710640251075,-714.14,0.00015497,2]
[319290610,1710640251085,-1292.37,0.00015497,2]
[319290611,1710640251094,-1292.37,0.00015497,2]
[319290612,1710640251104,-678.89,0.00015497,2]
[319290613,1710640251114,-678.89,0.00015497,2]
[319290614,1710640251123,-504.07,0.00015497,2]
[319290615,1710640251133,-504.07,0.00015497,2]
[319290616,1710640251143,-500.0,0.00015497,2]
[319290617,1710640251152,-941.84,0.00015497,2]
[319290618,1710640251161,-941.84,0.00015497,2]
[319290619,1710640251171,-500.0,0.00015497,2]
[319290620,1710640251180,-637.78,0.00015497,2]
[319290621,1710640251190,-671.3,0.00015497,2]
[319290622,1710640251199,-671.3,0.00015497,2]
[319290623,1710640251208,-671.3,0.00015497,2]
[319290624,1710640251218,-671.3,0.00015497,2]
[319290625,1710640251227,-671.48140658,0.00015497,2]
[319290626,1710640251237,-500.0,0.00015497,2]
[319290627,1710640251247,-500.0,0.00015497,2]
[319290628,1710640251256,-2421.75,0.00015497,2]
[319290629,1710640251266,-2421.75,0.00015497,2]
[319290630,1710640251275,-2421.75,0.00015497,2]
[319290631,1710640251284,-2421.75,0.00015497,2]
[319290632,1710640251294,-2421.80721721,0.00015497,2]
[319290633,1710640251305,-1733.44,0.00015497,2]
[319290634,1710640251315,-1733.44,0.00015497,2]
[319290635,1710640251324,-1022.16,0.00015497,2]
[319290636,1710640251334,-1022.16,0.00015497,2]
[319290637,1710640251344,-524.02,0.00015497,2]
[319290638,1710640251354,-524.02,0.00015497,2]
[319290639,1710640251363,-1657.76,0.00015497,2]
[319290640,1710640251373,-151.0,0.00015497,2]
[319290641,1710640251382,-1657.76,0.00015497,2]
[319290642,1710640251392,-1657.76,0.00015497,2]
[319290643,1710640251401,-1657.76,0.00015497,2]
[319290644,1710640251411,-1657.85736755,0.00015497,2]
[319290645,1710640251422,-500.0,0.00015497,2]
[319290646,1710640251431,-554.52962679,0.00015497,2]
[319290647,1710640251440,-1357.51,0.00015497,2]
[319290648,1710640251449,-1357.51,0.00015497,2]
[319290649,1710640251459,-1357.51,0.00015497,2]
[319290650,1710640251470,-1357.51,0.00015497,2]
[319290651,1710640251482,-1357.57517328,0.00015497,2]
[319290652,1710640251492,-151.0,0.00015497,2]
[319290653,1710640251502,-591.67,0.00015497,2]
[319290654,1710640251513,-591.67,0.00015497,2]
[319290655,1710640251523,-500.0,0.00015497,2]
[319290656,1710640251533,-500.0,0.00015497,2]
[319290657,1710640251544,-500.0,0.00015497,2]
[319290658,1710640251554,-500.0,0.00015497,2]
[319290659,1710640251564,-164.51944224,0.00015497,2]
[319290660,1710640251574,-220000.0,0.00015498,2]
[319290661,1710640251583,-59736.07237366,0.00015498,2]
[319290662,1710640251593,-323.11942737,0.00015498,5]
[319290663,1710640251604,-493.03143646,0.00015498,5]
[319290664,1710640251614,-151.63272,0.00015498,2]
[319290665,1710640251625,-151.371089,0.00015498,2]
[319290666,1710640251636,-152.545763,0.00015498,2]
[319290667,1710640251647,-151.0,0.00015498,2]
[319290668,1710640251656,-223.013874,0.00015498,2]
[319290669,1710640251666,-151.0,0.00015498,2]
[319290670,1710640251676,-154.002839,0.00015498,2]
[319290671,1710640251685,-151.0,0.00015498,2]
[319290672,1710640251696,-151.0,0.00015498,2]
[319290673,1710640251706,-500.0,0.00015498,2]
[319290674,1710640251722,-500.0,0.00015498,2]
[319290675,1710640251732,-500.0,0.00015498,2]
[319290676,1710640251742,-500.0,0.00015498,2]
[319290677,1710640251752,-438.67437273,0.00015498,2]
[319290678,1710640251762,-152.195947,0.00015498,2]
[319290679,1710640251771,-500.0,0.00015498,2]
[319290680,1710640251781,-500.0,0.00015498,2]
[319290681,1710640251791,-314.0625344,0.00015498,2]
[319290682,1710640251801,-151.0,0.00015498,2]
[319290683,1710640251811,-627.63,0.00015498,2]
[319290684,1710640251821,-627.63,0.00015498,2]
[319290685,1710640251831,-627.63,0.00015498,2]
[319290686,1710640251843,-627.63,0.00015498,2]
[319290687,1710640251855,-627.63,0.00015498,2]
[319290688,1710640251865,-627.78480946,0.00015498,2]
[319290689,1710640251876,-152.299516,0.00015498,2]
[319290690,1710640251887,-151.0,0.00015498,2]
[319290691,1710640251897,-225.237472,0.00015498,2]
[319290692,1710640251908,-151.0,0.00015498,2]
[319290693,1710640251918,-151.0,0.00015498,2]
[319290694,1710640251929,-714.14,0.00015498,2]
[319290695,1710640251939,-714.14,0.00015498,2]
[319290696,1710640251948,-714.14,0.00015498,2]
[319290697,1710640251958,-714.14,0.00015498,2]
[319290698,1710640251968,-714.14,0.00015498,2]
[319290699,1710640251977,-151.0,0.00015498,2]
[319290700,1710640251987,-151.0,0.00015498,2]
[319290701,1710640251999,-151.0,0.00015498,2]
[319290702,1710640252009,-151.0,0.00015498,2]
[319290703,1710640252019,-242.142895,0.00015498,2]
[319290704,1710640252029,-1292.37,0.00015498,2]
[319290705,1710640252039,-1292.37,0.00015498,2]
[319290706,1710640252049,-1292.37,0.00015498,2]
[319290707,1710640252059,-1292.37,0.00015498,2]
[319290708,1710640252070,-1292.59755051,0.00015498,2]
[319290709,1710640252079,-152.615162,0.00015498,2]
[319290710,1710640252090,-678.89,0.00015498,2]
[319290711,1710640252101,-678.89,0.00015498,2]
[319290712,1710640252111,-678.89,0.00015498,2]
[319290713,1710640252121,-678.89,0.00015498,2]
[319290714,1710640252131,-679.04190884,0.00015498,2]
[319290715,1710640252141,-152.615162,0.00015498,2]
[319290716,1710640252154,-151.0,0.00015498,2]
[319290717,1710640252164,-504.07,0.00015498,2]
[319290718,1710640252177,-504.07,0.00015498,2]
[319290719,1710640252187,-504.07,0.00015498,2]
[319290720,1710640252197,-504.07,0.00015498,2]
[319290721,1710640252208,-504.185383,0.00015498,2]
[319290722,1710640252218,-289.58147502,0.00015498,2]
[319290723,1710640252228,-151.581057,0.00015498,2]
[319290724,1710640252238,-941.84,0.00015498,2]
[319290725,1710640252248,-941.84,0.00015498,2]
[319290726,1710640252258,-941.84,0.00015498,2]
[319290727,1710640252268,-941.84,0.00015498,2]
[319290728,1710640252277,-941.84,0.00015498,2]
[319290729,1710640252287,-941.84532518,0.00015498,2]
[319290730,1710640252296,-151.0,0.00015498,2]
[319290731,1710640252307,-500.0,0.00015498,2]
[319290732,1710640252317,-500.0,0.00015498,2]
[319290733,1710640252328,-500.0,0.00015498,2]
[319290734,1710640252340,-229.57846923,0.00015498,2]
[319290735,1710640252351,-242.950149,0.00015498,2]
[319290736,1710640252361,-637.78,0.00015498,2]
[319290737,1710640252372,-637.78,0.00015498,2]
[319290738,1710640252382,-637.78,0.00015498,2]
[319290739,1710640252392,-637.78,0.00015498,2]
[319290740,1710640252402,-637.78,0.00015498,2]
[319290741,1710640252412,-637.86788727,0.00015498,2]
[319290742,1710640252422,-159.785569,0.00015498,2]
[319290743,1710640252433,-159.785569,0.00015498,2]
[319290744,1710640252444,-1496.489198,0.00015498,2]
[319290745,1710640252453,-1496.489198,0.00015498,2]
[319290746,1710640252464,-151.0,0.00015498,2]
[319290747,1710640252474,-500.0,0.00015498,2]
[319290748,1710640252485,-500.0,0.00015498,2]
[319290749,1710640252496,-500.0,0.00015498,2]
[319290750,1710640252506,-415.02585656,0.00015498,2]
[319290751,1710640252516,-1733.44,0.00015498,2]
[319290752,1710640252526,-1733.44,0.00015498,2]
[319290753,1710640252536,-1733.44,0.00015498,2]
[319290754,1710640252546,-1733.44,0.00015498,2]
[319290755,1710640252555,-1733.46506239,0.00015498,2]
[319290756,1710640252566,-1022.16,0.00015498,2]
[319290757,1710640252576,-1022.16,0.00015498,2]
[319290758,1710640252587,-1022.16,0.00015498,2]
[319290759,1710640252597,-1022.16,0.00015498,2]
[319290760,1710640252607,-1022.35571407,0.00015498,2]
[319290761,1710640252621,-524.02,0.00015498,2]
[319290762,1710640252633,-524.02,0.00015498,2]
[319290763,1710640252647,-524.02,0.00015498,2]
[319290764,1710640252658,-524.02,0.00015498,2]
[319290765,1710640252670,-524.08276274,0.00015498,2]
[319290766,1710640252681,-591.67,0.00015498,2]
[319290767,1710640252693,-591.67,0.00015498,2]
[319290768,1710640252703,-591.67,0.00015498,2]
[319290769,1710640252715,-591.67,0.00015498,2]
[319290770,1710640252728,-591.786717,0.00015498,2]
[319290771,1710640252740,-303.08119858,0.00015498,2]
[319290772,1710640252751,-786915.16207189,0.00015499,2]
[319290773,1710640252777,-890652.10452986,0.00015499,2]
[319290774,1710640252788,-1000.0,0.00015499,2]
[319290775,1710640252798,-1000.0,0.00015499,2]
[319290776,1710640252808,-1000.0,0.00015499,2]
[319290777,1710640252818,-1627.00291986,0.00015499,2]
[319290778,1710640252831,-151.0,0.00015499,2]
[319290779,1710640252841,-151.0,0.00015499,2]
[319290780,1710640252852,-151.0,0.00015499,2]
[319290781,1710640252862,-151.0,0.00015499,2]
[319290782,1710640252872,-156.91858,0.00015499,2]
[319290783,1710640252883,-151.0,0.00015499,2]
[319290784,1710640252892,-151.0,0.00015499,2]
[319290785,1710640252906,-151.0,0.00015499,2]
[319290786,1710640252915,-151.0,0.00015499,2]
[319290787,1710640252927,-151.0,0.00015499,2]
[319290788,1710640252936,-151.0,0.00015499,2]
[319290789,1710640252946,-155.049934,0.00015499,2]
[319290790,1710640252956,-152.615162,0.00015499,2]
[319290791,1710640252966,-152.615162,0.00015499,2]
[319290792,1710640252976,-151.0,0.00015499,2]
[319290793,1710640252985,-233.534801,0.00015499,2]
[319290794,1710640252996,-159.785569,0.00015499,2]
[319290795,1710640253006,-159.785569,0.00015499,2]
[319290796,1710640253016,-1496.489198,0.00015499,2]
[319290797,1710640253025,-1496.489198,0.00015499,2]
[319290798,1710640253036,-151.921896,0.00015499,2]
[319290799,1710640253045,-152.929475,0.00015499,2]
[319290800,1710640253055,-150.0,0.00015499,2]
[319290801,1710640253064,-150.0,0.00015499,2]
[319290802,1710640253074,-150.0,0.00015499,2]
[319290803,1710640253084,-151.0,0.00015499,2]
[319290804,1710640253094,-150.0,0.00015499,2]
[319290805,1710640253105,-150.0,0.00015499,2]
[319290806,1710640253116,-150.0,0.00015499,2]
[319290807,1710640253126,-150.0,0.00015499,2]
[319290808,1710640253137,-150.0,0.00015499,2]
[319290809,1710640253147,-150.0,0.00015499,2]
[319290810,1710640253158,-150.0,0.00015499,2]
[319290811,1710640253169,-150.0,0.00015499,2]
[319290812,1710640253179,-150.0,0.00015499,2]
[319290813,1710640253188,-150.0,0.00015499,2]
[319290814,1710640253197,-150.0,0.00015499,2]
[319290815,1710640253207,-150.0,0.00015499,2]
[319290816,1710640253217,-150.0,0.00015499,2]
[319290817,1710640253229,-150.0,0.00015499,2]
[319290818,1710640253239,-150.0,0.00015499,2]
[319290819,1710640253250,-150.0,0.00015499,2]
[319290820,1710640253259,-150.0,0.00015499,2]
[319290821,1710640253271,-150.0,0.00015499,2]
[319290822,1710640253280,-150.0,0.00015499,2]
[319290823,1710640253291,-150.0,0.00015499,2]
[319290824,1710640253301,-214.14651777,0.00015499,2]
[319290825,1710640253312,-706.21299389,0.000155,3]
[319290826,1710640253324,-654308.18453177,0.000155,2]
[319290827,1710640253341,-2785.16926086,0.000155,2]
[319290828,1710640253436,-9450.1619,0.00013793,2]
[319290829,1710640253446,-499.99,0.00015378,2]
[319290830,1710640253455,-151554.04785708,0.000155,2]
[319290831,1710640253532,6666.666666,0.000193,30]
[319290832,1710640253639,-469.99616937,0.00015342,2]
[319290833,1710640253649,-62.65133063,0.00015342,2]
[319290834,1710640253661,-437.34866937,0.00015342,2]
[319290835,1710640253674,-510.49621325,0.00015342,2]
[319290836,1710640253683,-1752.8877691,0.000155,2]
[319290837,1710640253696,-6598.35228964,0.000155,2]
[319290838,1710640253708,-1974.77509319,0.000155,2]
[319290839,1710640253720,-2542.80435328,0.000155,2]
[319290840,1710640253767,-511.72248252,0.000155,2]
[319290841,1710640253781,-1091.42327046,0.000155,2]
[319290842,1710640253793,-12363.93485038,0.000155,2]
[319290843,1710640253807,-2785.90388829,0.000155,2]
[319290844,1710640253819,-4018.70400003,0.000155,2]
[319290845,1710640253831,-14008.40866958,0.000155,2]
[319290846,1710640253849,-2795.78268498,0.000155,2]
[319290847,1710640253861,-1553.84010484,0.000155,2]
[319290848,1710640254011,-366.49928082,0.00015342,2]
[319290849,1710640254028,-150.11126731,0.00015342,2]
[319290850,1710640254038,-150.136,0.00015431,2]
[319290851,1710640254047,-1326.62773269,0.000155,2]
[319290852,1710640254061,-643.97892178,0.000155,2]
[319290853,1710640254073,-466.95977083,0.000155,2]
[319290854,1710640254084,-2250.66763034,0.000155,2]
[319290855,1710640254097,-3547.58100002,0.000155,2]
[319290856,1710640254109,-37618.5414644,0.000155,2]
[319290857,1710640254121,-837.9787467,0.000155,2]